[Event "Late-Titled-Tuesday-Blitz-September-05-2023"]
[Site "Chess.com"]
[Date "2023.09.05"]
[Round "4"]
[White "mishanick"]
[Black "alexrustemov"]
[Result "1-0"]
[WhiteElo "3073"]
[BlackElo "2879"]
[TimeControl "180+1"]
[EndTime "14:39:37 PDT"]
[Termination "mishanick won by checkmate"]

1. d4 {[%clk 0:03:00]} 1... d5 {[%clk 0:03:00.2]} 2. Nf3 {[%clk 0:02:59.9]} 2...
Nf6 {[%clk 0:02:59.3]} 3. e3 {[%clk 0:03:00]} 3... c5 {[%clk 0:02:52]} 4. Nbd2
{[%clk 0:02:55.4]} 4... cxd4 {[%clk 0:02:49.8]} 5. exd4 {[%clk 0:02:54.4]} 5...
Nc6 {[%clk 0:02:50.1]} 6. Bd3 {[%clk 0:02:53.4]} 6... Bg4 {[%clk 0:02:50.3]} 7.
c3 {[%clk 0:02:51.7]} 7... e6 {[%clk 0:02:50.8]} 8. Nf1 {[%clk 0:02:50.4]} 8...
Bd6 {[%clk 0:02:48.4]} 9. Ng3 {[%clk 0:02:50.5]} 9... h5 {[%clk 0:02:41.4]} 10.
h3 {[%clk 0:02:46.6]} 10... Bxf3 {[%clk 0:02:40.6]} 11. Qxf3 {[%clk 0:02:46.4]}
11... Qc7 {[%clk 0:02:30.3]} 12. Bg5 {[%clk 0:02:44.6]} 12... h4 {[%clk
0:02:21.1]} 13. Ne2 {[%clk 0:02:22.1]} 13... O-O-O {[%clk 0:02:21.5]} 14. O-O-O
{[%clk 0:02:17.9]} 14... Kb8 {[%clk 0:02:21.2]} 15. Kb1 {[%clk 0:02:18.2]} 15...
Be7 {[%clk 0:02:03.5]} 16. Rhe1 {[%clk 0:02:13.9]} 16... Ka8 {[%clk 0:02:01.3]}
17. Bc2 {[%clk 0:02:07.2]} 17... a6 {[%clk 0:02:01]} 18. Nf4 {[%clk 0:02:06.1]}
18... Nd7 {[%clk 0:01:54.2]} 19. Nxd5 {[%clk 0:02:01.4]} 19... exd5 {[%clk
0:01:49.1]} 20. Bxe7 {[%clk 0:02:01.8]} 20... Rde8 {[%clk 0:01:48.4]} 21. Bg5
{[%clk 0:01:58.8]} 21... Nb6 {[%clk 0:01:39.8]} 22. Qf4 {[%clk 0:01:50.4]} 22...
Qd7 {[%clk 0:01:26.3]} 23. Bf5 {[%clk 0:01:47.9]} 23... Re6 {[%clk 0:01:15]} 24.
Bxe6 {[%clk 0:01:47.1]} 24... fxe6 {[%clk 0:01:15.6]} 25. Qg4 {[%clk 0:01:46]}
25... Re8 {[%clk 0:01:11.9]} 26. Qxh4 {[%clk 0:01:43.3]} 26... Nc4 {[%clk
0:01:12.2]} 27. Bc1 {[%clk 0:01:42.7]} 27... b5 {[%clk 0:01:11.9]} 28. b3 {[%clk
0:01:39.1]} 28... Nd6 {[%clk 0:01:09.8]} 29. Ba3 {[%clk 0:01:34.5]} 29... Ne4
{[%clk 0:01:01.8]} 30. Rxe4 {[%clk 0:01:33.8]} 30... dxe4 {[%clk 0:01:02.5]} 31.
Qxe4 {[%clk 0:01:34.2]} 31... Qd5 {[%clk 0:00:53.9]} 32. Re1 {[%clk 0:01:33.2]}
32... Rd8 {[%clk 0:00:44.9]} 33. Bc5 {[%clk 0:01:31]} 33... Kb7 {[%clk
0:00:44.3]} 34. Qxd5 {[%clk 0:01:30.5]} 34... exd5 {[%clk 0:00:44.2]} 35. Re6
{[%clk 0:01:31]} 35... Rd7 {[%clk 0:00:40.9]} 36. f3 {[%clk 0:01:30]} 36... Rf7
{[%clk 0:00:41.1]} 37. Kc2 {[%clk 0:01:29.8]} 37... Kc7 {[%clk 0:00:40.8]} 38.
Kd3 {[%clk 0:01:29.6]} 38... a5 {[%clk 0:00:36.9]} 39. Rd6 {[%clk 0:01:29.4]}
39... Rf5 {[%clk 0:00:32.9]} 40. Rg6 {[%clk 0:01:29.7]} 40... Rf7 {[%clk
0:00:32.5]} 41. a4 {[%clk 0:01:30.3]} 41... bxa4 {[%clk 0:00:19.7]} 42. bxa4
{[%clk 0:01:31.2]} 42... Kb7 {[%clk 0:00:17.8]} 43. h4 {[%clk 0:01:30.9]} 43...
Kc7 {[%clk 0:00:08.3]} 44. h5 {[%clk 0:01:31.1]} 44... Nd8 {[%clk 0:00:07.8]}
45. Bb6+ {[%clk 0:01:29.9]} 45... Kc8 {[%clk 0:00:07.5]} 46. Bxd8 {[%clk
0:01:30.8]} 46... Kxd8 {[%clk 0:00:08.2]} 47. Ra6 {[%clk 0:01:31.2]} 47... Rf5
{[%clk 0:00:07.1]} 48. Rxa5 {[%clk 0:01:31.3]} 48... Rxh5 {[%clk 0:00:06.8]} 49.
Rc5 {[%clk 0:01:32]} 49... Kd7 {[%clk 0:00:03.8]} 50. a5 {[%clk 0:01:32.5]}
50... Kd6 {[%clk 0:00:03.4]} 51. a6 {[%clk 0:01:33]} 51... Rh8 {[%clk
0:00:03.8]} 52. a7 {[%clk 0:01:33.5]} 52... Ra8 {[%clk 0:00:04.2]} 53. Ra5
{[%clk 0:01:34.2]} 53... Kc6 {[%clk 0:00:03.9]} 54. Ra1 {[%clk 0:01:34.8]} 54...
Kb6 {[%clk 0:00:03.6]} 55. f4 {[%clk 0:01:35.4]} 55... g6 {[%clk 0:00:03.4]} 56.
g4 {[%clk 0:01:35.9]} 56... Kb7 {[%clk 0:00:03.6]} 57. f5 {[%clk 0:01:36.4]}
57... gxf5 {[%clk 0:00:03.7]} 58. gxf5 {[%clk 0:01:37.1]} 58... Kc7 {[%clk
0:00:04.3]} 59. f6 {[%clk 0:01:37.5]} 59... Kb7 {[%clk 0:00:04.6]} 60. f7 {[%clk
0:01:37.4]} 60... Kc7 {[%clk 0:00:01.9]} 61. f8=Q {[%clk 0:01:37.4]} 61... Rxf8
{[%clk 0:00:02.2]} 62. a8=Q {[%clk 0:01:38.3]} 62... Rf3+ {[%clk 0:00:02.4]} 63.
Ke2 {[%clk 0:01:38.3]} 63... Rh3 {[%clk 0:00:02.4]} 64. Ra7+ {[%clk 0:01:38.7]}
64... Kd6 {[%clk 0:00:02.8]} 65. Qb8+ {[%clk 0:01:32]} 65... Ke6 {[%clk
0:00:02.8]} 66. Qe5# {[%clk 0:01:32.3]} 1-0

[Event "Late-Titled-Tuesday-Blitz-September-05-2023"]
[Site "Chess.com"]
[Date "2023.09.05"]
[Round "4"]
[White "komogro"]
[Black "Guzman70"]
[Result "1-0"]
[WhiteElo "2509"]
[BlackElo "2355"]
[TimeControl "180+1"]
[EndTime "14:39:37 PDT"]
[Termination "komogro won on time"]

1. e4 {[%clk 0:03:00]} 1... e6 {[%clk 0:02:58.7]} 2. d3 {[%clk 0:02:58.8]} 2...
d5 {[%clk 0:02:58.8]} 3. Nd2 {[%clk 0:02:59.7]} 3... Nf6 {[%clk 0:02:59]} 4.
Ngf3 {[%clk 0:03:00]} 4... Bc5 {[%clk 0:02:59.3]} 5. g3 {[%clk 0:03:00.3]} 5...
dxe4 {[%clk 0:02:58.7]} 6. Ng5 {[%clk 0:02:44]} 6... e3 {[%clk 0:02:48.4]} 7.
fxe3 {[%clk 0:02:40.2]} 7... Bxe3 {[%clk 0:02:49.3]} 8. Nge4 {[%clk 0:02:36.9]}
8... O-O {[%clk 0:02:43.9]} 9. Bg2 {[%clk 0:02:35.3]} 9... Bb6 {[%clk
0:02:40.1]} 10. Nc4 {[%clk 0:02:32]} 10... Nxe4 {[%clk 0:02:38]} 11. Nxb6 {[%clk
0:02:29.4]} 11... axb6 {[%clk 0:02:28]} 12. Bxe4 {[%clk 0:02:29]} 12... Nd7
{[%clk 0:02:14.1]} 13. O-O {[%clk 0:02:27.2]} 13... Nf6 {[%clk 0:02:14]} 14. Bg2
{[%clk 0:02:27.2]} 14... h6 {[%clk 0:02:00.5]} 15. Kh1 {[%clk 0:02:26.8]} 15...
e5 {[%clk 0:01:58.4]} 16. h3 {[%clk 0:02:23.9]} 16... Be6 {[%clk 0:01:55.5]} 17.
a3 {[%clk 0:02:22.1]} 17... Qd7 {[%clk 0:01:50]} 18. Kh2 {[%clk 0:02:14.3]}
18... Nd5 {[%clk 0:01:43.7]} 19. Qh5 {[%clk 0:02:13.1]} 19... f6 {[%clk
0:01:40.2]} 20. Bd2 {[%clk 0:02:01.4]} 20... Qf7 {[%clk 0:01:39]} 21. Qh4 {[%clk
0:01:53.8]} 21... Rad8 {[%clk 0:01:34]} 22. Rae1 {[%clk 0:01:52.8]} 22... Rd7
{[%clk 0:01:30.3]} 23. g4 {[%clk 0:01:41.9]} 23... Qe7 {[%clk 0:01:19.2]} 24.
Be4 {[%clk 0:01:39.4]} 24... Rfd8 {[%clk 0:01:09.3]} 25. c4 {[%clk 0:01:24.4]}
25... Nf4 {[%clk 0:01:07.7]} 26. Bxf4 {[%clk 0:01:19]} 26... exf4 {[%clk
0:01:08.6]} 27. Bf5 {[%clk 0:01:18.7]} 27... Rd6 {[%clk 0:01:01.9]} 28. Rxf4
{[%clk 0:01:09.9]} 28... Qf7 {[%clk 0:00:50.5]} 29. Be4 {[%clk 0:01:05.2]} 29...
g5 {[%clk 0:00:44.8]} 30. Qxh6 {[%clk 0:00:56.8]} 30... gxf4 {[%clk 0:00:44]}
31. Rf1 {[%clk 0:00:57]} 31... Qg7 {[%clk 0:00:43.6]} 32. Qxf4 {[%clk
0:00:56.1]} 32... c6 {[%clk 0:00:38.8]} 33. b4 {[%clk 0:00:52.2]} 33... Rd4
{[%clk 0:00:37.3]} 34. Qe3 {[%clk 0:00:50.7]} 34... Bf7 {[%clk 0:00:35.3]} 35.
Bf5 {[%clk 0:00:40.4]} 35... Bg6 {[%clk 0:00:31.9]} 36. Qe6+ {[%clk 0:00:40.1]}
36... Kh8 {[%clk 0:00:31.7]} 37. Bxg6 {[%clk 0:00:38]} 37... Qxg6 {[%clk
0:00:31.6]} 38. Rxf6 {[%clk 0:00:37.9]} 38... Qxd3 {[%clk 0:00:14.9]} 39. Rh6+
{[%clk 0:00:34.1]} 39... Kg7 {[%clk 0:00:10.7]} 40. Qf6+ {[%clk 0:00:33.8]} 1-0

[Event "Late-Titled-Tuesday-Blitz-September-05-2023"]
[Site "Chess.com"]
[Date "2023.09.05"]
[Round "4"]
[White "RIPOL"]
[Black "Orest_Vovk"]
[Result "1-0"]
[WhiteElo "2417"]
[BlackElo "2585"]
[TimeControl "180+1"]
[EndTime "14:39:38 PDT"]
[Termination "RIPOL won on time"]

1. d4 {[%clk 0:02:57.4]} 1... g6 {[%clk 0:02:55.7]} 2. e4 {[%clk 0:02:54.5]}
2... Nf6 {[%clk 0:02:33]} 3. e5 {[%clk 0:02:50.4]} 3... Nh5 {[%clk 0:02:32.2]}
4. Nf3 {[%clk 0:02:47.8]} 4... d6 {[%clk 0:02:32]} 5. Bc4 {[%clk 0:02:43.1]}
5... Bg7 {[%clk 0:02:24.6]} 6. h3 {[%clk 0:02:39.8]} 6... dxe5 {[%clk
0:02:19.8]} 7. Nxe5 {[%clk 0:02:39.4]} 7... Bxe5 {[%clk 0:02:18.4]} 8. dxe5
{[%clk 0:02:38.1]} 8... Qxd1+ {[%clk 0:02:18.2]} 9. Kxd1 {[%clk 0:02:38.6]} 9...
Be6 {[%clk 0:02:15.5]} 10. Bxe6 {[%clk 0:02:24.8]} 10... fxe6 {[%clk 0:02:16.4]}
11. Nd2 {[%clk 0:02:23.9]} 11... Nc6 {[%clk 0:02:15.4]} 12. Nf3 {[%clk
0:02:22.3]} 12... O-O-O+ {[%clk 0:02:09.7]} 13. Ke2 {[%clk 0:02:16.7]} 13...
Nd4+ {[%clk 0:02:05.6]} 14. Nxd4 {[%clk 0:02:14.5]} 14... Rxd4 {[%clk
0:02:06.5]} 15. Be3 {[%clk 0:01:59.4]} 15... Rd5 {[%clk 0:01:56]} 16. g4 {[%clk
0:01:54.7]} 16... Ng7 {[%clk 0:01:54.6]} 17. f4 {[%clk 0:01:33]} 17... g5 {[%clk
0:01:54.1]} 18. c4 {[%clk 0:01:31.2]} 18... Ra5 {[%clk 0:01:39.5]} 19. a4 {[%clk
0:01:23.1]} 19... gxf4 {[%clk 0:01:33.7]} 20. Bxf4 {[%clk 0:01:23]} 20... c5
{[%clk 0:01:26]} 21. Bh6 {[%clk 0:01:10]} 21... Ne8 {[%clk 0:01:19.7]} 22. Rhf1
{[%clk 0:01:08.8]} 22... Ra6 {[%clk 0:01:12.5]} 23. Rf7 {[%clk 0:01:05.9]} 23...
Rb6 {[%clk 0:01:12]} 24. Rd1 {[%clk 0:00:51.3]} 24... Rxb2+ {[%clk 0:01:09.9]}
25. Rd2 {[%clk 0:00:51.8]} 25... Rb3 {[%clk 0:00:38.5]} 26. h4 {[%clk 0:00:45]}
26... Rg3 {[%clk 0:00:29.9]} 27. g5 {[%clk 0:00:34.5]} 27... Rg2+ {[%clk
0:00:23.1]} 28. Ke1 {[%clk 0:00:32.3]} 28... Rxd2 {[%clk 0:00:23.2]} 29. Kxd2
{[%clk 0:00:32.1]} 29... Kd8 {[%clk 0:00:23.2]} 30. Bf8 {[%clk 0:00:28.1]} 30...
Nc7 {[%clk 0:00:13.4]} 31. Bxe7+ {[%clk 0:00:26.9]} 31... Ke8 {[%clk 0:00:12.1]}
32. Rg7 {[%clk 0:00:27.2]} 32... Na6 {[%clk 0:00:09.4]} 33. Bd6 {[%clk
0:00:26.5]} 33... Nb4 {[%clk 0:00:05.2]} 34. Rxb7 {[%clk 0:00:25.7]} 34... Nc6
{[%clk 0:00:05.4]} 35. Rc7 {[%clk 0:00:23.8]} 35... Nd8 {[%clk 0:00:04.3]} 36.
Re7+ {[%clk 0:00:23.4]} 1-0

[Event "Late-Titled-Tuesday-Blitz-September-05-2023"]
[Site "Chess.com"]
[Date "2023.09.05"]
[Round "4"]
[White "lachesisQ"]
[Black "Sanan_Sjugirov"]
[Result "0-1"]
[WhiteElo "3073"]
[BlackElo "2907"]
[TimeControl "180+1"]
[EndTime "14:39:41 PDT"]
[Termination "Sanan_Sjugirov won on time"]

1. d4 {[%clk 0:03:00.9]} 1... Nf6 {[%clk 0:02:58.8]} 2. c4 {[%clk 0:03:00.6]}
2... e6 {[%clk 0:02:59]} 3. Nc3 {[%clk 0:03:00.6]} 3... Bb4 {[%clk 0:02:57.4]}
4. e3 {[%clk 0:03:00.8]} 4... c5 {[%clk 0:02:52.3]} 5. Ne2 {[%clk 0:02:59.3]}
5... d6 {[%clk 0:02:49.7]} 6. a3 {[%clk 0:02:56.7]} 6... Ba5 {[%clk 0:02:48.4]}
7. g3 {[%clk 0:02:54]} 7... d5 {[%clk 0:02:34.5]} 8. Bg2 {[%clk 0:02:26.4]} 8...
dxc4 {[%clk 0:02:24.5]} 9. O-O {[%clk 0:02:24.5]} 9... cxd4 {[%clk 0:02:17.9]}
10. Nxd4 {[%clk 0:02:22.1]} 10... O-O {[%clk 0:02:14.2]} 11. Qa4 {[%clk
0:02:18.8]} 11... e5 {[%clk 0:02:06.1]} 12. Nde2 {[%clk 0:02:16.2]} 12... Bxc3
{[%clk 0:01:49.8]} 13. Nxc3 {[%clk 0:02:16.1]} 13... Nc6 {[%clk 0:01:46.6]} 14.
Qxc4 {[%clk 0:02:15.2]} 14... Be6 {[%clk 0:01:36.7]} 15. Qb5 {[%clk 0:02:14.9]}
15... Qc7 {[%clk 0:01:35.3]} 16. b4 {[%clk 0:01:51.4]} 16... a6 {[%clk
0:01:30.6]} 17. Qa4 {[%clk 0:01:49.2]} 17... Rfd8 {[%clk 0:01:15]} 18. Bb2
{[%clk 0:01:46.2]} 18... Rd2 {[%clk 0:01:10.3]} 19. Rab1 {[%clk 0:01:31.6]}
19... Bc4 {[%clk 0:00:55.8]} 20. b5 {[%clk 0:00:45.9]} 20... Bxf1 {[%clk
0:00:54.9]} 21. Bxf1 {[%clk 0:00:46.1]} 21... Ne7 {[%clk 0:00:47.7]} 22. bxa6
{[%clk 0:00:41]} 22... bxa6 {[%clk 0:00:43.2]} 23. Ne4 {[%clk 0:00:41.1]} 23...
Qc2 {[%clk 0:00:25.7]} 24. Nxf6+ {[%clk 0:00:25.9]} 24... gxf6 {[%clk
0:00:23.6]} 25. Qb4 {[%clk 0:00:24.1]} 25... Nd5 {[%clk 0:00:17.7]} 26. Qb7
{[%clk 0:00:21.9]} 26... Rd8 {[%clk 0:00:08.1]} 27. Ba1 {[%clk 0:00:11.7]} 27...
Rxf2 {[%clk 0:00:07.3]} 28. Re1 {[%clk 0:00:05.4]} 28... Rxh2 {[%clk 0:00:05.1]}
0-1

[Event "Late-Titled-Tuesday-Blitz-September-05-2023"]
[Site "Chess.com"]
[Date "2023.09.05"]
[Round "4"]
[White "grzechu96"]
[Black "sergiochess83"]
[Result "1-0"]
[WhiteElo "2665"]
[BlackElo "2924"]
[TimeControl "180+1"]
[EndTime "14:39:42 PDT"]
[Termination "grzechu96 won on time"]

1. e4 {[%clk 0:03:00.9]} 1... c5 {[%clk 0:02:58.3]} 2. Nf3 {[%clk 0:02:58.8]}
2... e6 {[%clk 0:02:57]} 3. d4 {[%clk 0:02:57.5]} 3... cxd4 {[%clk 0:02:57.1]}
4. Nxd4 {[%clk 0:02:58.4]} 4... Nf6 {[%clk 0:02:57.2]} 5. Nc3 {[%clk 0:02:58.5]}
5... Nc6 {[%clk 0:02:57.5]} 6. Nxc6 {[%clk 0:02:51.9]} 6... bxc6 {[%clk
0:02:56.1]} 7. e5 {[%clk 0:02:51.1]} 7... Nd5 {[%clk 0:02:53.7]} 8. Ne4 {[%clk
0:02:51.5]} 8... Qc7 {[%clk 0:02:35.8]} 9. f4 {[%clk 0:02:47.6]} 9... Qb6 {[%clk
0:02:36]} 10. c4 {[%clk 0:02:44.8]} 10... Bb4+ {[%clk 0:02:31.3]} 11. Ke2 {[%clk
0:02:43]} 11... Ba6 {[%clk 0:02:24.7]} 12. Kf3 {[%clk 0:02:40.5]} 12... f5
{[%clk 0:02:24.3]} 13. exf6 {[%clk 0:02:28.2]} 13... Nxf6 {[%clk 0:02:22.2]} 14.
c5 {[%clk 0:02:13.9]} 14... Bxc5 {[%clk 0:01:22.1]} 15. Nxc5 {[%clk 0:02:11.2]}
15... Bxf1 {[%clk 0:01:19.8]} 16. Na4 {[%clk 0:01:57.9]} 16... Qb5 {[%clk
0:00:38.1]} 17. Rxf1 {[%clk 0:01:28.2]} 17... Qh5+ {[%clk 0:00:37.7]} 18. Kf2
{[%clk 0:01:17.6]} 18... Ng4+ {[%clk 0:00:33.4]} 19. Ke1 {[%clk 0:01:07.2]}
19... Qh4+ {[%clk 0:00:27.4]} 20. g3 {[%clk 0:00:32.4]} 20... Qh3 {[%clk
0:00:26.1]} 21. Qe2 {[%clk 0:00:32.3]} 21... Nxh2 {[%clk 0:00:23.9]} 22. Rg1
{[%clk 0:00:26]} 22... O-O {[%clk 0:00:20.5]} 23. Bd2 {[%clk 0:00:17.2]} 23...
Rf5 {[%clk 0:00:20.5]} 24. Kd1 {[%clk 0:00:15.2]} 24... Ng4 {[%clk 0:00:10.5]}
25. Kc2 {[%clk 0:00:13.7]} 25... Rb8 {[%clk 0:00:07.9]} 26. Rh1 {[%clk
0:00:06.7]} 26... Qxg3 {[%clk 0:00:05.8]} 27. Rag1 {[%clk 0:00:07.1]} 27... Qf2
{[%clk 0:00:02.7]} 28. Qxg4 {[%clk 0:00:06.9]} 28... g6 {[%clk 0:00:02.5]} 29.
Qg2 {[%clk 0:00:06]} 29... Ra8 {[%clk 0:00:01.9]} 30. Qxf2 {[%clk 0:00:06.2]}
1-0

[Event "Late-Titled-Tuesday-Blitz-September-05-2023"]
[Site "Chess.com"]
[Date "2023.09.05"]
[Round "4"]
[White "Dontmesswithme_2"]
[Black "Nekoo04"]
[Result "1-0"]
[WhiteElo "2487"]
[BlackElo "2312"]
[TimeControl "180+1"]
[EndTime "14:39:42 PDT"]
[Termination "Dontmesswithme_2 won by resignation"]

1. d4 {[%clk 0:02:57.8]} 1... d5 {[%clk 0:02:53.5]} 2. c4 {[%clk 0:02:56.5]}
2... e6 {[%clk 0:02:53.6]} 3. Nf3 {[%clk 0:02:54]} 3... Nf6 {[%clk 0:02:53.5]}
4. g3 {[%clk 0:02:51.6]} 4... Bb4+ {[%clk 0:02:53.3]} 5. Bd2 {[%clk 0:02:39.7]}
5... Be7 {[%clk 0:02:52.7]} 6. Bg2 {[%clk 0:02:39.2]} 6... O-O {[%clk
0:02:53.3]} 7. O-O {[%clk 0:02:39.1]} 7... Nbd7 {[%clk 0:02:52.4]} 8. Bf4 {[%clk
0:02:38.1]} 8... c6 {[%clk 0:02:52.4]} 9. Nc3 {[%clk 0:02:37.4]} 9... b6 {[%clk
0:02:52]} 10. Qc2 {[%clk 0:02:35]} 10... Ba6 {[%clk 0:02:49]} 11. Ne5 {[%clk
0:02:30.6]} 11... Nxe5 {[%clk 0:01:59]} 12. dxe5 {[%clk 0:02:27.9]} 12... Nd7
{[%clk 0:01:58.5]} 13. cxd5 {[%clk 0:02:27.3]} 13... cxd5 {[%clk 0:01:57.1]} 14.
Rfd1 {[%clk 0:01:50.3]} 14... g5 {[%clk 0:01:49]} 15. Bc1 {[%clk 0:01:49.4]}
15... Nxe5 {[%clk 0:01:47.7]} 16. e4 {[%clk 0:01:43.9]} 16... d4 {[%clk
0:01:41.8]} 17. Qa4 {[%clk 0:01:43.5]} 17... dxc3 {[%clk 0:00:49.3]} 18. Rxd8
{[%clk 0:01:39.6]} 18... Raxd8 {[%clk 0:00:48]} 19. Qxa6 {[%clk 0:01:34.7]}
19... Rd1+ {[%clk 0:00:41.6]} 20. Bf1 {[%clk 0:01:34.4]} 20... c2 {[%clk
0:00:27.6]} 21. Kg2 {[%clk 0:00:43.8]} 21... Rfd8 {[%clk 0:00:24.6]} 22. Be2
{[%clk 0:00:41.3]} 22... Re1 {[%clk 0:00:19.7]} 23. Bh5 {[%clk 0:00:27.9]} 23...
Rdd1 {[%clk 0:00:16.1]} 24. Qc8+ {[%clk 0:00:27.2]} 24... Kg7 {[%clk 0:00:14.8]}
25. Qxc2 {[%clk 0:00:15.7]} 25... Rg1+ {[%clk 0:00:08.6]} 26. Kh3 {[%clk
0:00:14.6]} 26... g4+ {[%clk 0:00:03.5]} 27. Bxg4 {[%clk 0:00:14.7]} 27... h5
{[%clk 0:00:03.5]} 28. Bxh5 {[%clk 0:00:12.5]} 28... Rh1 {[%clk 0:00:02.8]} 29.
Bxd1 {[%clk 0:00:11.1]} 1-0

[Event "Late-Titled-Tuesday-Blitz-September-05-2023"]
[Site "Chess.com"]
[Date "2023.09.05"]
[Round "4"]
[White "ameetghasi100"]
[Black "Rud_Makarian"]
[Result "0-1"]
[WhiteElo "2679"]
[BlackElo "2948"]
[TimeControl "180+1"]
[EndTime "14:39:43 PDT"]
[Termination "Rud_Makarian won on time"]

1. Nf3 {[%clk 0:03:00.9]} 1... Nf6 {[%clk 0:03:00.3]} 2. g3 {[%clk 0:03:00.9]}
2... b5 {[%clk 0:03:01]} 3. Bg2 {[%clk 0:03:01.8]} 3... Bb7 {[%clk 0:03:01.6]}
4. O-O {[%clk 0:03:02.3]} 4... e6 {[%clk 0:03:02.3]} 5. b3 {[%clk 0:03:02.3]}
5... b4 {[%clk 0:03:02.2]} 6. Bb2 {[%clk 0:03:01.1]} 6... Be7 {[%clk 0:03:02.2]}
7. c4 {[%clk 0:03:01.4]} 7... O-O {[%clk 0:03:02]} 8. d4 {[%clk 0:03:01.7]} 8...
c5 {[%clk 0:03:01.5]} 9. d5 {[%clk 0:02:56.7]} 9... exd5 {[%clk 0:02:59.1]} 10.
Nh4 {[%clk 0:02:56.8]} 10... d6 {[%clk 0:02:57]} 11. Nf5 {[%clk 0:02:44.9]}
11... Re8 {[%clk 0:02:56.9]} 12. cxd5 {[%clk 0:02:41.8]} 12... Bf8 {[%clk
0:02:56.2]} 13. Nd2 {[%clk 0:02:25.8]} 13... g6 {[%clk 0:02:54.1]} 14. Ne3
{[%clk 0:02:24.6]} 14... Bg7 {[%clk 0:02:47.9]} 15. Ndc4 {[%clk 0:02:18.2]}
15... a5 {[%clk 0:02:47]} 16. a3 {[%clk 0:02:16.4]} 16... Qc7 {[%clk 0:02:34]}
17. Qc2 {[%clk 0:02:10.4]} 17... Nbd7 {[%clk 0:02:33.3]} 18. h3 {[%clk
0:02:02.7]} 18... Nb6 {[%clk 0:02:29.1]} 19. Nxb6 {[%clk 0:02:01.6]} 19... Qxb6
{[%clk 0:02:29.6]} 20. Nc4 {[%clk 0:02:02.2]} 20... Qc7 {[%clk 0:02:28.9]} 21.
e4 {[%clk 0:01:47.5]} 21... Ba6 {[%clk 0:02:22.1]} 22. f4 {[%clk 0:01:16.4]}
22... Nd7 {[%clk 0:02:15]} 23. Bxg7 {[%clk 0:01:13.1]} 23... Kxg7 {[%clk
0:02:15]} 24. Rfe1 {[%clk 0:01:10.7]} 24... Bxc4 {[%clk 0:02:12.1]} 25. bxc4
{[%clk 0:01:08.1]} 25... Nb6 {[%clk 0:02:12.7]} 26. a4 {[%clk 0:01:06.3]} 26...
Re7 {[%clk 0:02:06.4]} 27. h4 {[%clk 0:01:06.1]} 27... Rae8 {[%clk 0:02:05.7]}
28. Re3 {[%clk 0:01:04.2]} 28... f6 {[%clk 0:01:59.4]} 29. Rae1 {[%clk
0:01:04.3]} 29... Qd7 {[%clk 0:01:59]} 30. Kh2 {[%clk 0:01:04.3]} 30... Qxa4
{[%clk 0:01:57.1]} 31. Qe2 {[%clk 0:01:02.6]} 31... b3 {[%clk 0:01:51.5]} 32. e5
{[%clk 0:01:02.5]} 32... fxe5 {[%clk 0:01:50.9]} 33. fxe5 {[%clk 0:01:02.7]}
33... Rxe5 {[%clk 0:01:47.2]} 34. Rxe5 {[%clk 0:00:51.8]} 34... Rxe5 {[%clk
0:01:44.3]} 35. Qf2 {[%clk 0:00:52.7]} 35... Nxc4 {[%clk 0:01:40.3]} 36. Rf1
{[%clk 0:00:46.2]} 36... Rf5 {[%clk 0:01:27.2]} 37. Qe1 {[%clk 0:00:28.5]} 37...
Ne5 {[%clk 0:01:24.9]} 38. Rxf5 {[%clk 0:00:21.6]} 38... gxf5 {[%clk 0:01:23.1]}
39. Qd2 {[%clk 0:00:22.5]} 39... h6 {[%clk 0:01:18.3]} 40. Qc3 {[%clk
0:00:16.3]} 40... Qb4 {[%clk 0:01:16.2]} 41. Qb2 {[%clk 0:00:15.9]} 41... a4
{[%clk 0:01:16.2]} 42. Qb1 {[%clk 0:00:14.1]} 42... b2 {[%clk 0:01:07.5]} 43.
Qxf5 {[%clk 0:00:10.9]} 43... b1=Q {[%clk 0:01:05.7]} 44. Qe6 {[%clk 0:00:11.8]}
44... Qg6 {[%clk 0:00:54]} 45. Qe7+ {[%clk 0:00:11.4]} 45... Nf7 {[%clk
0:00:53.5]} 46. h5 {[%clk 0:00:10.3]} 46... Qf6 {[%clk 0:00:53.4]} 47. Qe2
{[%clk 0:00:08.2]} 47... a3 {[%clk 0:00:51.4]} 0-1

[Event "Late-Titled-Tuesday-Blitz-September-05-2023"]
[Site "Chess.com"]
[Date "2023.09.05"]
[Round "4"]
[White "sjoerd893"]
[Black "Boorchess"]
[Result "0-1"]
[WhiteElo "2417"]
[BlackElo "2573"]
[TimeControl "180+1"]
[EndTime "14:39:44 PDT"]
[Termination "Boorchess won on time"]

1. e4 {[%clk 0:03:00.9]} 1... a6 {[%clk 0:02:59.3]} 2. d4 {[%clk 0:02:54.6]}
2... e6 {[%clk 0:02:59.1]} 3. Nf3 {[%clk 0:02:51]} 3... b5 {[%clk 0:02:54.6]} 4.
a4 {[%clk 0:02:49.3]} 4... b4 {[%clk 0:02:53.7]} 5. Bd3 {[%clk 0:02:45.4]} 5...
a5 {[%clk 0:02:46.6]} 6. Bf4 {[%clk 0:02:38.8]} 6... d6 {[%clk 0:02:45.9]} 7.
Nbd2 {[%clk 0:02:36.9]} 7... h6 {[%clk 0:02:45.2]} 8. Nb3 {[%clk 0:02:27.1]}
8... g6 {[%clk 0:02:38.3]} 9. e5 {[%clk 0:02:17.8]} 9... d5 {[%clk 0:02:35.7]}
10. h4 {[%clk 0:02:07.7]} 10... c6 {[%clk 0:02:32.2]} 11. Qd2 {[%clk 0:01:28.8]}
11... Qb6 {[%clk 0:02:28.6]} 12. Nh2 {[%clk 0:01:27.1]} 12... Nd7 {[%clk
0:02:19.5]} 13. O-O-O {[%clk 0:01:22.4]} 13... Qc7 {[%clk 0:02:02]} 14. h5
{[%clk 0:01:20.6]} 14... g5 {[%clk 0:02:01.1]} 15. Be3 {[%clk 0:01:20.5]} 15...
Nb6 {[%clk 0:01:59.9]} 16. f4 {[%clk 0:01:13.2]} 16... gxf4 {[%clk 0:01:56.8]}
17. Bxf4 {[%clk 0:01:14.1]} 17... Nxa4 {[%clk 0:01:55.1]} 18. Ng4 {[%clk
0:01:12.4]} 18... Nb6 {[%clk 0:01:39]} 19. Nf6+ {[%clk 0:01:10.6]} 19... Nxf6
{[%clk 0:01:37]} 20. exf6 {[%clk 0:01:11.5]} 20... Qa7 {[%clk 0:01:31.1]} 21.
Nc5 {[%clk 0:01:03]} 21... a4 {[%clk 0:01:20.7]} 22. Qxb4 {[%clk 0:00:57.8]}
22... Nd7 {[%clk 0:01:17.1]} 23. Qc3 {[%clk 0:00:52.1]} 23... Nxc5 {[%clk
0:01:15.3]} 24. dxc5 {[%clk 0:00:51.5]} 24... Bxc5 {[%clk 0:01:02.3]} 25. Rh3
{[%clk 0:00:44.5]} 25... a3 {[%clk 0:01:00.3]} 26. bxa3 {[%clk 0:00:44.4]} 26...
Bd4 {[%clk 0:00:43.8]} 27. Qxc6+ {[%clk 0:00:38.7]} 27... Bd7 {[%clk 0:00:35.8]}
28. Qd6 {[%clk 0:00:33.7]} 28... Bxf6 {[%clk 0:00:27.3]} 29. Be2 {[%clk
0:00:10.5]} 29... Rc8 {[%clk 0:00:19.1]} 30. Be5 {[%clk 0:00:08.9]} 30... Be7
{[%clk 0:00:18.2]} 31. Qxe7+ {[%clk 0:00:04.8]} 31... Kxe7 {[%clk 0:00:17.9]}
32. Bxh8 {[%clk 0:00:05.7]} 32... Rxh8 {[%clk 0:00:18.2]} 33. Rf3 {[%clk
0:00:04.3]} 33... Qc5 {[%clk 0:00:17.9]} 34. Rdf1 {[%clk 0:00:03.9]} 34... Be8
{[%clk 0:00:18.3]} 35. Bd3 {[%clk 0:00:04.2]} 35... Rg8 {[%clk 0:00:18.4]} 36.
g3 {[%clk 0:00:04]} 36... Rg4 {[%clk 0:00:18.5]} 37. Kd2 {[%clk 0:00:03.3]}
37... Qxa3 {[%clk 0:00:17.5]} 0-1